bitfinex/quotes_SOLUSD_20241022
["timestamp","ask_amount","ask_price","bid_price","bid_amount"]
[1729604792327,23.776884,165.28,165.22,0.1]
[1729604792526,23.776884,165.28,165.23,0.1]
[1729604792731,23.776884,165.28,165.23,0.2]
[1729604792905,6.0517,165.25,165.19,0.2]
[1729604793104,6.0521,165.24,165.19,0.1]
[1729604793321,6.0511,165.26,165.21,0.2]
[1729604794015,23.776884,165.28,165.22,0.1]
[1729604794217,30.7698,165.31,165.18,0.6234569]
[1729604794218,15.6461,165.31,165.23,0.2]
[1729604794414,6.0517,165.25,165.19,0.2]
[1729604794618,15.124,165.3,165.19,0.2]
[1729604794829,6.0518,165.24,165.19,0.2]
[1729604795039,6.0514,165.25,165.22,0.1]
[1729604795335,20.0,165.3,165.22,0.2]
[1729604795515,29.827584,165.27,165.21,0.1]
[1729604795920,23.776884,165.27,165.23,0.1]
[1729604796309,6.0499,165.3,165.24,0.1]
[1729604796512,6.0496,165.3,165.25,0.1]
[1729604796735,6.0496,165.3,165.25,0.2]
[1729604797027,15.12,165.35,165.26,0.1]
[1729604797229,6.0491,165.32,165.26,0.2]
[1729604797447,6.0491,165.32,165.27,0.2]
[1729604797914,6.0485,165.33,165.27,0.2]
[1729604798115,21.5299,165.36,165.29,0.1]
[1729604798314,6.0487,165.33,165.29,0.1]
[1729604798533,6.0494,165.31,165.26,0.2]
[1729604798736,6.0489,165.32,165.27,0.2]
[1729604798921,6.0485,165.33,165.28,0.1]
[1729604799435,6.0488,165.33,165.27,0.2]
[1729604799813,6.0488,165.33,165.28,0.1]
[1729604800012,6.0488,165.33,165.27,0.2]
[1729604800717,23.776884,165.34,165.29,0.1]
[1729604800940,23.776884,165.34,165.28,0.1]
[1729604801122,29.825184,165.34,165.28,0.1]
[1729604801633,23.776884,165.34,165.26,0.1]
[1729604801840,23.776884,165.34,165.27,0.2]
[1729604802243,6.0491,165.32,165.27,0.1]
[1729604802823,6.0491,165.32,165.27,0.2]
[1729604803023,6.0491,165.32,165.26,0.2]
[1729604803235,6.0491,165.32,165.27,0.1]
[1729604803439,23.776884,165.34,165.28,0.1]
[1729604803938,23.776884,165.34,165.3,0.1]
[1729604804115,6.0485,165.33,165.28,0.1]
[1729604804320,6.0485,165.33,165.3,0.1]
[1729604804525,6.0471,165.37,165.31,0.1]
[1729604804719,6.0062,165.41,165.35,0.1]
[1729604804938,6.0458,165.41,165.37,0.1]
[1729604805136,6.0062,165.46,165.39,0.1]
[1729604805321,6.0444,165.45,165.41,0.1]
[1729604805637,6.0434,165.47,165.42,0.1]
[1729604805852,6.5935,165.5,165.44,0.1]
[1729604806142,6.5935,165.58,165.49,0.1]
[1729604806324,6.5935,165.58,165.45,0.1]
[1729604806521,6.0426,165.49,165.44,0.1]
[1729604807436,6.0441,165.45,165.4,0.1]
[1729604807640,6.0437,165.47,165.41,0.1]
[1729604807834,6.0437,165.47,165.43,0.1]
[1729604808142,23.776884,165.5,165.45,0.1]
[1729604808331,6.0423,165.5,165.46,0.1]
[1729604808530,6.0418,165.52,165.47,0.1]
[1729604808742,6.0419,165.51,165.46,0.1]
[1729604808923,6.0419,165.51,165.45,0.1]
[1729604809127,6.0419,165.51,165.47,0.1]
[1729604809329,7.87110714,165.57,165.4,0.1]
[1729604809545,6.0434,165.47,165.43,0.1]
[1729604809745,15.1074,165.49,165.39,0.1]
[1729604810047,6.0451,165.43,165.39,0.1]
[1729604810352,6.0451,165.43,165.38,0.1]
[1729604810528,6.0452,165.42,165.37,0.2]
[1729604810728,6.0457,165.41,165.38,0.2]
[1729604810923,6.0452,165.42,165.38,0.2]
[1729604811539,6.0461,165.4,165.35,0.1]
[1729604811755,23.776884,165.44,165.37,0.1]
[1729604811922,6.0452,165.42,165.37,0.2]
[1729604812122,6.0455,165.41,165.35,0.2]
[1729604812344,23.776884,165.42,165.35,0.2]
[1729604812528,6.0452,165.43,165.37,0.2]
[1729604812731,23.776884,165.44,165.4,0.1]
[1729604813242,6.0429,165.49,165.42,0.1]
[1729604813448,6.3756,165.53,165.41,0.2]
[1729604813642,6.0441,165.46,165.41,0.2]
[1729604813844,6.0441,165.46,165.42,0.1]
[1729604814140,6.0425,165.5,165.45,0.1]
[1729604814652,6.0427,165.49,165.45,0.1]
[1729604815722,6.3756,165.53,165.44,0.1]
[1729604815925,6.0433,165.48,165.44,0.1]
[1729604816754,6.0427,165.49,165.44,0.2]
[1729604816926,23.776884,165.48,165.44,0.2]
[1729604817132,23.776884,165.48,165.43,0.1]
[1729604817333,6.0436,165.47,165.43,0.2]
[1729604817843,6.0436,165.47,165.43,0.1]
[1729604818045,6.0436,165.47,165.43,0.2]
[1729604819259,6.0423,165.5,165.45,0.2]
[1729604819448,6.0423,165.5,165.46,0.2]
[1729604819963,21.5835,165.58,165.49,0.1]
[1729604820139,6.0411,165.54,165.49,0.1]
[1729604820339,21.5835,165.58,165.5,0.1]
[1729604820542,6.4849,165.58,165.47,0.1]
[1729604820872,6.0427,165.49,165.46,0.2]
[1729604821070,18.13,165.57,165.43,0.1]
[1729604821358,20.0,165.54,165.43,0.2]
[1729604821538,6.0436,165.47,165.43,0.2]
[1729604821934,23.776884,165.48,165.44,0.1]
[1729604822141,29.819984,165.48,165.44,0.1]
[1729604822546,29.819984,165.48,165.43,0.2]
[1729604822935,29.819984,165.48,165.44,0.1]
[1729604823144,6.0418,165.52,165.48,0.1]
[1729604823344,15.0995,165.57,165.48,0.2]
[1729604823546,6.0411,165.54,165.49,0.1]
[1729604824157,15.0995,165.57,165.49,0.2]
[1729604824359,6.0412,165.53,165.49,0.2]
[1729604825534,23.776884,165.52,165.46,0.1]
[1729604825738,23.776884,165.52,165.43,0.1]
[1729604825938,6.0433,165.48,165.44,0.1]
[1729604826138,6.0433,165.48,165.44,0.2]
[1729604826350,20.0,165.53,165.48,0.1]
[1729604826665,6.0418,165.52,165.48,0.1]
[1729604826847,7.46497068,165.57,165.48,0.2]
[1729604827053,6.0417,165.52,165.48,0.2]
[1729604827460,6.042,165.51,165.48,0.1]
[1729604827657,20.0,165.54,165.45,0.1]
[1729604827856,23.776884,165.51,165.38,0.1]
[1729604828043,6.0462,165.4,165.39,0.1]
[1729604828249,6.0463,165.39,165.35,0.1]
[1729604828552,6.0463,165.39,165.36,0.1]
[1729604828762,6.046,165.4,165.36,0.2]
[1729604829652,6.046,165.4,165.37,0.1]
[1729604830348,6.046,165.4,165.36,0.2]
[1729604830562,6.046,165.4,165.37,0.1]
[1729604830768,6.046,165.4,165.37,0.2]
[1729604831069,6.046,165.4,165.38,0.1]
[1729604831379,15.1083,165.48,165.41,0.1]
[1729604831548,15.1051,165.51,165.44,0.2]
[1729604831756,1.04189637,165.57,165.33,16.5244]
[1729604831757,6.0412,165.53,165.47,0.2]
[1729604832071,6.041,165.54,165.5,0.1]
[1729604832443,6.435,165.59,165.51,0.1]
[1729604832645,6.435,165.64,165.53,0.2]
[1729604832846,6.435,165.64,165.54,0.1]
[1729604833072,6.0397,165.57,165.54,0.1]
[1729604833254,6.0397,165.57,165.53,0.1]
[1729604833461,15.0947,165.62,165.53,0.1]
[1729604833658,6.04,165.57,165.52,0.2]
[1729604833853,6.0401,165.56,165.53,0.2]
[1729604834267,6.0408,165.54,165.51,0.1]
[1729604834446,20.0,165.62,165.49,0.1]
[1729604834645,20.0,165.6,165.51,0.1]
[1729604834861,6.041,165.54,165.51,0.1]
[1729604835046,20.0,165.58,165.49,0.1]
[1729604835255,23.776884,165.59,165.47,0.1]
[1729604835461,6.0418,165.52,165.48,0.1]
[1729604835652,6.042,165.51,165.47,0.1]
[1729604835855,6.0408,165.54,165.47,0.1]
[1729604836058,58.877984,165.55,165.46,0.1]
[1729604836059,23.776884,165.52,165.46,0.1]
[1729604836251,20.0,165.49,165.42,0.1]
[1729604836552,6.0451,165.43,165.41,0.1]
[1729604836758,6.045,165.43,165.41,0.1]
[1729604836986,6.0454,165.42,165.39,0.1]
[1729604837271,6.0456,165.41,165.39,0.1]
[1729604837475,20.0,165.45,165.4,0.1]
[1729604837646,6.0451,165.43,165.41,0.1]
[1729604838365,35.1103,165.45,165.38,0.1]
[1729604838670,6.0456,165.41,165.39,0.1]
[1729604838857,15.1103,165.45,165.39,0.1]
[1729604838858,43.776884,165.44,165.39,0.1]
[1729604839059,6.0458,165.41,165.39,0.1]
[1729604839256,6.0459,165.4,165.37,0.1]
[1729604839462,43.776884,165.44,165.37,0.1]
[1729604839656,6.0463,165.39,165.36,0.1]
[1729604839851,6.0463,165.39,165.37,0.1]
[1729604840158,6.0448,165.43,165.38,0.1]
[1729604840479,23.776884,165.42,165.39,0.1]
[1729604840651,6.0455,165.42,165.39,0.1]
[1729604840851,21.53077431,165.48,165.42,0.1]
[1729604841149,15.1048,165.52,165.45,0.1]
[1729604841569,6.0433,165.48,165.46,0.1]
[1729604841766,15.1048,165.52,165.46,0.1]
[1729604842070,6.0433,165.47,165.46,0.1]
[1729604843575,6.0433,165.47,165.45,0.1]
[1729604843745,15.1048,165.52,165.4,6.6386]
[1729604843746,43.776884,165.51,165.4,0.1]
[1729604843955,6.0456,165.41,165.4,0.1]
[1729604844173,6.0459,165.4,165.38,0.1]
[1729604844375,15.1113,165.44,165.38,0.1]
[1729604844376,6.0466,165.39,165.38,0.1]
[1729604844964,6.0455,165.41,165.4,0.1]
[1729604845275,6.0452,165.43,165.41,0.1]
[1729604846474,6.0441,165.45,165.43,0.1]
[1729604846768,6.0438,165.46,165.44,0.1]
[1729604846952,6.0269,165.53,165.45,0.1]
[1729604847152,6.0433,165.47,165.45,0.1]
[1729604847751,6.0429,165.49,165.47,0.1]
[1729604848157,36.2337,165.53,165.44,0.1]
[1729604848380,6.0441,165.45,165.44,0.1]
[1729604849259,6.0441,165.45,165.43,0.1]
[1729604849454,43.776884,165.52,165.41,0.1]
[1729604849780,6.0451,165.43,165.41,0.1]
[1729604849976,23.776884,165.47,165.42,0.1]
[1729604850270,6.0445,165.44,165.42,0.1]
[1729604850591,6.0445,165.44,165.43,0.1]
[1729604850750,6.0445,165.44,165.34,6.5964]
[1729604850751,6.0419,165.51,165.48,0.1]
[1729604850957,7.35483025,165.55,165.49,0.1]
[1729604851156,4.44467468,165.53,165.52,0.2]
[1729604851367,6.0393,165.59,165.56,0.1]
[1729604851566,17.60392256,165.58,165.56,0.1]
[1729604851750,4.44785483,165.57,165.53,0.2]
[1729604851967,4.44785483,165.56,165.52,0.1]
[1729604852161,6.0412,165.53,165.52,0.2]
[1729604852368,6.0412,165.53,165.52,0.1]
[1729604852677,7.35483025,165.6,165.53,0.1]
[1729604852678,6.0411,165.54,165.53,0.1]
[1729604852883,6.0411,165.54,165.52,0.1]
[1729604853378,6.0411,165.54,165.53,0.1]
[1729604853569,20.0,165.58,165.48,0.1]
[1729604853754,6.0426,165.49,165.48,0.1]
[1729604853953,6.0426,165.49,165.47,0.2]
[1729604854171,6.0426,165.49,165.48,0.1]
[1729604854368,6.0426,165.49,165.48,0.2]
[1729604854782,6.0426,165.49,165.47,0.2]
[1729604855291,6.0426,165.49,165.47,0.1]
[1729604855493,6.0434,165.47,165.44,0.1]
[1729604855786,6.0422,165.5,165.48,0.2]
[1729604856570,7.41158074,165.57,165.51,0.1]
[1729604856888,7.41158074,165.57,165.38,16.2863]
[1729604856889,15.0958,165.61,165.55,0.1]
[1729604857088,6.0397,165.57,165.56,0.1]
[1729604857271,6.0397,165.57,165.55,0.1]
[1729604857579,6.0397,165.57,165.56,0.1]
[1729604857786,6.0392,165.59,165.56,0.1]
[1729604857958,4.44859728,165.6,165.54,0.2]
[1729604858166,24.44839623,165.59,165.54,0.1]
[1729604858473,4.44839623,165.58,165.54,0.1]
[1729604858668,6.0401,165.56,165.55,0.1]
[1729604858989,6.0401,165.56,165.54,0.2]
[1729604859366,6.0401,165.56,165.55,0.1]
[1729604860290,6.0401,165.56,165.54,0.1]
[1729604860585,6.0412,165.53,165.52,0.1]
[1729604860983,6.0412,165.53,165.52,0.2]
[1729604861688,6.0408,165.54,165.52,0.2]
[1729604862090,23.776884,165.58,165.56,0.1]
[1729604862091,6.0395,165.58,165.56,0.1]
[1729604862264,6.0395,165.58,165.57,0.1]
[1729604862465,4.44859728,165.6,165.59,0.1]
[1729604863368,6.039,165.59,165.58,0.1]
[1729604863569,6.039,165.59,165.57,0.1]
[1729604863570,4.44859728,165.6,165.57,0.1]
[1729604863774,4.44859728,165.6,165.59,0.2]
[1729604865585,6.038,165.62,165.61,0.1]
[1729604865783,23.776884,165.66,165.62,0.1]
[1729604865994,22.4136,165.75,165.66,0.1]
[1729604866197,22.4136,165.75,165.59,20.0]
[1729604866198,6.0351,165.7,165.68,0.1]
[1729604866404,6.0351,165.7,165.69,0.1]
[1729604866869,6.0351,165.7,165.68,0.2]
[1729604867069,22.4136,165.75,165.66,0.1]
[1729604867295,6.036,165.67,165.66,0.1]
[1729604867594,6.036,165.67,165.66,0.2]
[1729604868094,6.0353,165.69,165.68,0.1]
[1729604868403,37.4966,165.75,165.69,0.1]
[1729604868572,20.0,165.74,165.69,0.1]
[1729604868778,20.0,165.74,165.7,0.1]
[1729604868978,0.6234569,165.77,165.71,0.2]
[1729604869199,0.6234569,165.77,165.7,0.2]
[1729604869200,6.0346,165.71,165.7,0.2]
[1729604869994,6.0346,165.71,165.7,0.1]
[1729604870190,6.0346,165.71,165.7,0.2]
[1729604870903,43.776884,165.75,165.71,0.1]
[1729604871104,6.0342,165.72,165.71,0.2]
[1729604872304,6.0335,165.74,165.73,0.1]
[1729604873204,6.0328,165.76,165.74,0.1]
[1729604873396,6.0328,165.76,165.72,0.1]
[1729604873597,6.0332,165.75,165.72,0.1]
[1729604873798,0.6234569,165.77,165.73,0.1]
[1729604874021,6.0335,165.74,165.73,0.1]
[1729604874496,0.6234569,165.77,165.75,0.1]
[1729604874497,26.0328,165.76,165.75,0.1]
[1729604875385,6.0328,165.76,165.75,0.1]
[1729604875602,6.6561569,165.77,165.76,0.1]
[1729604875908,0.6234569,165.77,165.76,0.2]
[1729604877293,6.6558569,165.77,165.76,0.1]
[1729604877493,6.6558569,165.77,165.76,0.2]
[1729604878010,0.6234569,165.77,165.76,0.2]
[1729604878217,6.6558569,165.77,165.76,0.1]
[1729604879604,30.4327409,165.77,165.76,0.1]
[1729604880594,0.6234569,165.77,165.76,0.1]
[1729604881107,0.6234569,165.77,165.69,0.1]
[1729604881108,6.0339,165.73,165.72,0.1]
[1729604881301,6.0339,165.73,165.72,0.2]
[1729604881502,43.776884,165.76,165.73,0.1]
[1729604881706,58.858884,165.76,165.73,0.1]
[1729604881896,58.858884,165.76,165.71,0.1]
[1729604882101,43.776884,165.76,165.69,0.1]
[1729604882302,30.7862569,165.77,165.69,0.1]
[1729604882303,49.811484,165.71,165.7,0.1]
[1729604882507,6.0331,165.75,165.74,0.1]
[1729604882805,6.0335,165.74,165.73,0.1]
[1729604883111,43.776884,165.76,165.75,0.1]
[1729604883309,49.809684,165.76,165.75,0.1]
[1729604883612,6.0331,165.75,165.74,0.2]
[1729604884196,23.776884,165.74,165.71,0.2]
[1729604884391,6.0342,165.72,165.71,0.2]
[1729604885806,23.776884,165.74,165.69,0.1]
[1729604886012,23.776884,165.7,165.69,0.1]
[1729604886229,6.0357,165.68,165.67,0.1]
[1729604886710,6.036,165.67,165.66,0.2]
[1729604886918,23.776884,165.66,165.62,0.2]
[1729604887224,6.0375,165.64,165.63,0.2]
[1729604887788,6.0364,165.66,165.65,0.1]
[1729604887998,6.0363,165.67,165.65,0.2]
[1729604888196,6.0357,165.68,165.67,0.1]
[1729604888511,6.0357,165.68,165.67,0.2]
[1729604888712,6.0353,165.69,165.68,0.2]
[1729604889008,6.0353,165.69,165.68,0.1]
[1729604889692,6.0353,165.69,165.68,0.2]
[1729604889894,6.035,165.7,165.68,0.2]
[1729604890212,6.035,165.7,165.69,0.1]
[1729604890411,6.035,165.7,165.69,0.2]
[1729604890709,20.0,165.74,165.71,0.1]
[1729604890911,6.0342,165.72,165.71,0.1]
[1729604891794,6.0346,165.71,165.7,0.1]
[1729604892798,6.0346,165.71,165.7,0.2]
[1729604893715,6.0346,165.71,165.7,0.1]
[1729604894094,20.0,165.69,165.63,0.1]
[1729604894306,6.0371,165.64,165.63,0.1]
[1729604894598,6.0371,165.64,165.63,0.2]
[1729604895093,6.0371,165.64,165.63,0.1]
[1729604895403,30.328384,165.68,165.61,0.1]
[1729604895610,20.0,165.67,165.61,0.1]
[1729604895796,6.0382,165.61,165.6,0.2]
[1729604898109,43.776884,165.64,165.6,0.2]
[1729604898697,6.0382,165.61,165.6,0.2]
[1729604899093,43.776884,165.64,165.59,0.1]
[1729604899321,6.0386,165.6,165.59,0.1]
[1729604899591,6.039,165.59,165.57,0.1]
[1729604899801,6.0386,165.6,165.59,0.1]
[1729604900004,43.776884,165.64,165.61,0.1]
[1729604900234,29.814284,165.64,165.63,0.1]
[1729604900400,23.776884,165.64,165.62,0.2]
[1729604900606,23.776884,165.64,165.62,0.1]
[1729604900607,6.0375,165.63,165.62,0.1]
[1729604900928,23.776884,165.64,165.6,0.2]
[1729604900929,6.0382,165.61,165.6,0.2]
[1729604901223,23.776884,165.61,165.58,0.1]
[1729604901413,23.776884,165.64,165.58,0.2]
[1729604901414,6.039,165.59,165.58,0.2]
[1729604901804,6.039,165.59,165.58,0.1]
[1729604902013,6.039,165.59,165.58,0.2]
[1729604902415,29.815884,165.59,165.58,0.1]
[1729604902708,29.815884,165.59,165.58,0.2]
[1729604902914,23.776884,165.59,165.56,0.1]
[1729604903119,29.815884,165.59,165.58,0.1]
[1729604903332,6.0393,165.58,165.57,0.2]
[1729604903836,49.815084,165.62,165.61,0.1]
[1729604904012,20.0,165.62,165.6,0.1]
[1729604904201,6.0382,165.61,165.6,0.1]
[1729604905026,45.2706,165.67,165.58,0.2]
[1729604905223,6.0368,165.65,165.57,0.1]
[1729604905427,23.776884,165.61,165.57,0.2]
[1729604905625,6.0393,165.58,165.57,0.2]
[1729604905932,35.0947,165.62,165.6,0.1]
[1729604905933,6.0382,165.61,165.6,0.1]
[1729604906131,6.0377,165.63,165.62,0.2]
[1729604906333,15.0891,165.69,165.64,0.1]
[1729604906334,6.0368,165.65,165.64,0.1]
[1729604906516,15.0891,165.69,165.65,0.1]
[1729604906715,6.036,165.68,165.67,0.1]
[1729604906916,6.036,165.68,165.67,0.2]
[1729604907416,6.2629,165.72,165.65,0.2]
[1729604907615,6.0368,165.65,165.64,0.2]
[1729604908035,6.0368,165.65,165.64,0.1]
[1729604908220,6.0368,165.65,165.64,0.2]
[1729604909657,23.776884,165.62,165.6,0.1]
[1729604909934,6.0401,165.56,165.55,0.1]
[1729604910118,6.0401,165.56,165.55,0.2]
[1729604910638,6.0393,165.58,165.57,0.2]
[1729604911230,29.815784,165.6,165.59,0.2]
[1729604911537,23.776884,165.6,165.59,0.1]
[1729604911712,29.815484,165.6,165.59,0.1]
[1729604912111,29.815484,165.6,165.56,0.1]
[1729604912112,23.776884,165.6,165.56,0.1]
[1729604912340,29.816584,165.57,165.56,0.2]
[1729604912512,29.816584,165.57,165.56,0.1]
[1729604912713,23.776884,165.58,165.55,0.2]
[1729604912714,6.0401,165.56,165.55,0.2]
[1729604914430,23.776884,165.58,165.56,0.1]
[1729604914635,6.0398,165.57,165.56,0.2]
[1729604914841,30.1842,165.65,165.59,0.2]
[1729604914842,6.0387,165.6,165.59,0.2]
[1729604915344,6.0383,165.61,165.6,0.2]
[1729604915521,6.0379,165.62,165.61,0.1]
[1729604915921,6.0379,165.62,165.61,0.2]
[1729604916833,29.814784,165.62,165.61,0.2]
[1729604917940,6.0378,165.63,165.62,0.2]
[1729604918641,6.0368,165.65,165.64,0.2]
[1729604918819,6.0365,165.66,165.65,0.2]
[1729604919944,29.813384,165.66,165.65,0.2]
[1729604925225,6.0365,165.66,165.65,0.2]
[1729604926851,29.813684,165.65,165.64,0.1]
[1729604927040,43.776884,165.65,165.63,0.1]
[1729604927235,6.0379,165.62,165.61,0.1]
[1729604927428,20.0,165.64,165.63,0.1]
[1729604927632,6.0371,165.64,165.63,0.2]
[1729604927948,15.0898,165.68,165.66,0.1]
[1729604928157,43.776884,165.67,165.66,0.1]
[1729604928349,49.812884,165.67,165.66,0.1]
[1729604930136,6.0364,165.66,165.65,0.2]
[1729604930351,6.0364,165.66,165.65,0.1]
[1729604930555,6.0364,165.66,165.65,0.2]
[1729604930851,43.776884,165.67,165.64,0.2]
[1729604931058,6.0371,165.64,165.62,0.2]
[1729604931231,49.813684,165.65,165.64,0.1]
[1729604931434,6.0371,165.64,165.63,0.1]
[1729604932051,6.0375,165.63,165.62,0.2]
[1729604932450,43.776884,165.65,165.54,22.073]
[1729604932451,26.0379,165.62,165.61,0.1]
[1729604932651,49.814384,165.63,165.62,0.1]
[1729604932840,29.814384,165.63,165.62,0.1]
[1729604933155,49.814384,165.63,165.62,0.1]
[1729604935069,49.814784,165.62,165.61,0.1]
[1729604936761,6.0382,165.61,165.6,0.2]
[1729604937051,6.0382,165.61,165.6,0.1]
[1729604937429,6.0382,165.61,165.6,0.2]
[1729604938859,23.776884,165.62,165.61,0.1]
[1729604939067,30.1786,165.68,165.61,0.2]
[1729604939357,6.0379,165.62,165.61,0.2]
[1729604939552,26.0364,165.66,165.65,0.1]
[1729604939734,26.0368,165.65,165.64,0.1]
[1729604939931,30.50589282,165.65,165.64,0.1]
[1729604940134,37.65930777,165.65,165.64,0.1]
[1729604941546,20.0,165.64,165.62,0.1]
[1729604941737,26.0371,165.64,165.63,0.1]
[1729604942049,30.50802883,165.64,165.63,0.1]
[1729604942248,6.0375,165.63,165.62,0.1]
[1729604942448,6.0375,165.63,165.62,0.2]
[1729604943859,6.0375,165.63,165.62,0.1]
[1729604944159,6.0382,165.61,165.6,0.2]
[1729604944365,6.039,165.59,165.58,0.2]
[1729604944566,6.039,165.59,165.54,22.073]
[1729604944567,20.0,165.64,165.57,0.2]
[1729604944760,43.776884,165.62,165.56,0.1]
[1729604945065,6.0401,165.56,165.55,0.2]
[1729604946377,6.0401,165.56,165.5,6.4335]
[1729604946378,6.0386,165.6,165.59,0.2]
[1729604946538,6.0379,165.62,165.61,0.1]
[1729604946737,6.0379,165.62,165.61,0.2]
[1729604947752,6.0376,165.63,165.62,0.1]
[1729604948068,6.0379,165.62,165.61,0.2]
[1729604949346,6.0386,165.6,165.59,0.2]
[1729604950264,23.776884,165.61,165.57,0.2]
[1729604950465,15.0947,165.62,165.58,0.2]
[1729604950466,29.815884,165.59,165.58,0.2]
[1729604950762,6.039,165.59,165.58,0.2]
[1729604951161,23.776884,165.62,165.61,0.1]
[1729604951469,6.0371,165.64,165.63,0.2]
[1729604951764,4.46738591,165.64,165.62,0.2]
[1729604951950,6.0375,165.63,165.62,0.2]
[1729604952469,23.776884,165.67,165.6,0.1]
[1729604952673,29.815084,165.61,165.6,0.1]
[1729604953347,6.0371,165.64,165.63,0.2]
[1729604954590,6.036,165.67,165.66,0.1]
[1729604954747,4.47118334,165.67,165.66,0.2]
[1729604954948,6.0353,165.7,165.68,0.1]
[1729604955163,6.0353,165.7,165.69,0.1]
[1729604955549,17.66041551,165.7,165.69,0.1]
[1729604956361,7.45037836,165.76,165.71,0.1]
[1729604956574,19.08396786,165.75,165.7,0.1]
[1729604956862,19.08396786,165.75,165.69,0.1]
[1729604956863,26.7173895,165.74,165.69,0.1]
[1729604957065,11.6335895,165.73,165.7,0.1]
[1729604957266,4.4744575,165.72,165.7,0.1]
[1729604957464,6.035,165.7,165.69,0.2]
[1729604957641,6.0357,165.68,165.67,0.1]
[1729604957842,43.776884,165.69,165.65,0.1]
[1729604958044,26.0371,165.64,165.63,0.1]
[1729604958269,49.813984,165.64,165.63,0.1]
[1729604958473,43.776884,165.64,165.63,0.1]
[1729604958646,43.776884,165.69,165.66,0.1]
[1729604958841,43.776884,165.66,165.65,0.1]
[1729604959067,29.813684,165.65,165.64,0.2]
[1729604959444,23.776884,165.65,165.64,0.2]
[1729604959651,6.0364,165.66,165.65,0.2]
[1729604959853,29.813284,165.66,165.65,0.2]
[1729604960780,29.813284,165.66,165.65,0.1]
[1729604960958,23.776884,165.65,165.63,0.1]
[1729604961158,29.814384,165.63,165.62,0.1]
[1729604961361,29.814384,165.63,165.62,0.2]
[1729604961684,6.036,165.67,165.66,0.1]
[1729604961972,34.29207146,165.67,165.66,0.2]
[1729604962353,29.813684,165.65,165.64,0.1]
[1729604962554,29.813984,165.64,165.63,0.2]
[1729604962760,29.813984,165.64,165.61,0.1]
[1729604962761,23.776884,165.64,165.61,0.1]
[1729604962967,23.776884,165.64,165.61,0.2]
[1729604963168,23.776884,165.64,165.55,6.1338]
[1729604963169,29.814384,165.63,165.62,0.2]
[1729604965261,6.0375,165.63,165.62,0.2]
[1729604965974,49.813684,165.65,165.64,0.1]
[1729604966154,39.19837653,165.71,165.67,0.1]